[Event "*** SCC Grand Prix: Titled Tuesday Blitz"]
[Site "Chess.com"]
[Date "2020.06.23"]
[Round "7"]
[White "Bazarov04"]
[Black "RobertoJBM"]
[Result "0-1"]
[WhiteElo "2500"]
[BlackElo "2665"]
[TimeControl "180+1"]
[EndTime "11:19:17 PDT"]
[Termination "RobertoJBM won on time"]

1. Nf3 {[%clk 0:02:59.8]} 1... d5 {[%clk 0:02:57.4]} 2. b3 {[%clk 0:02:59.6]}
2... Bg4 {[%clk 0:02:56.7]} 3. Bb2 {[%clk 0:02:58.9]} 3... Nd7 {[%clk
0:02:56.2]} 4. g3 {[%clk 0:02:58.8]} 4... c6 {[%clk 0:02:56.1]} 5. Bg2 {[%clk
0:02:59]} 5... e6 {[%clk 0:02:56.6]} 6. O-O {[%clk 0:02:59]} 6... Ngf6 {[%clk
0:02:57]} 7. c4 {[%clk 0:02:55.4]} 7... Bd6 {[%clk 0:02:56.9]} 8. Nc3 {[%clk
0:02:51.9]} 8... Qe7 {[%clk 0:02:56.5]} 9. d3 {[%clk 0:02:50.9]} 9... O-O {[%clk
0:02:56]} 10. h3 {[%clk 0:02:50.8]} 10... Bh5 {[%clk 0:02:55.6]} 11. Qc2 {[%clk
0:02:49.1]} 11... Rfe8 {[%clk 0:02:54]} 12. e4 {[%clk 0:02:49]} 12... dxe4
{[%clk 0:02:53.6]} 13. Nxe4 {[%clk 0:02:49]} 13... Nxe4 {[%clk 0:02:53.2]} 14.
dxe4 {[%clk 0:02:49.9]} 14... Bxf3 {[%clk 0:02:52.5]} 15. Bxf3 {[%clk
0:02:49.8]} 15... Be5 {[%clk 0:02:52.8]} 16. Bg2 {[%clk 0:02:47.3]} 16... Bxb2
{[%clk 0:02:51]} 17. Qxb2 {[%clk 0:02:48.2]} 17... e5 {[%clk 0:02:50]} 18. Rad1
{[%clk 0:02:44.8]} 18... a5 {[%clk 0:02:43.9]} 19. f4 {[%clk 0:02:42]} 19... f6
{[%clk 0:02:41.2]} 20. Rd2 {[%clk 0:02:32.3]} 20... Nc5 {[%clk 0:02:39.4]} 21.
fxe5 {[%clk 0:02:27.5]} 21... Qxe5 {[%clk 0:02:38.5]} 22. Qxe5 {[%clk
0:02:20.2]} 22... Rxe5 {[%clk 0:02:39.4]} 23. Rfd1 {[%clk 0:02:20.5]} 23... Kf7
{[%clk 0:02:36.6]} 24. Rd8 {[%clk 0:02:04.5]} 24... Rxd8 {[%clk 0:02:35.7]} 25.
Rxd8 {[%clk 0:02:04.4]} 25... Re7 {[%clk 0:02:35.9]} 26. Ra8 {[%clk 0:01:57.4]}
26... Na6 {[%clk 0:02:08.2]} 27. Kf2 {[%clk 0:01:47.6]} 27... Ke6 {[%clk
0:02:02.7]} 28. Ke3 {[%clk 0:01:46.1]} 28... Kd6 {[%clk 0:02:02.4]} 29. Kd4
{[%clk 0:01:40.7]} 29... Kc7 {[%clk 0:02:01.1]} 30. h4 {[%clk 0:01:32.2]} 30...
Rd7+ {[%clk 0:01:58.1]} 31. Ke3 {[%clk 0:01:32.1]} 31... Kb6 {[%clk 0:01:56.6]}
32. Bh3 {[%clk 0:01:28.8]} 32... Re7 {[%clk 0:01:55]} 33. Rh8 {[%clk 0:01:07.9]}
33... g6 {[%clk 0:01:52.5]} 34. Kf4 {[%clk 0:01:01]} 34... Nc5 {[%clk
0:01:50.7]} 35. Bg2 {[%clk 0:01:01.2]} 35... a4 {[%clk 0:01:46.9]} 36. bxa4
{[%clk 0:00:58.2]} 36... Ka5 {[%clk 0:01:46.1]} 37. h5 {[%clk 0:00:57.8]} 37...
Kxa4 {[%clk 0:01:29.6]} 38. Kg4 {[%clk 0:00:51]} 38... Nd3 {[%clk 0:01:23.9]}
39. Rf8 {[%clk 0:00:43.9]} 39... Ne5+ {[%clk 0:01:22.1]} 40. Kf4 {[%clk
0:00:41]} 40... Nd7 {[%clk 0:01:18.4]} 41. Rg8 {[%clk 0:00:39.1]} 41... gxh5
{[%clk 0:01:14.4]} 42. Bf3 {[%clk 0:00:36.7]} 42... Kb4 {[%clk 0:01:12.7]} 43.
Bxh5 {[%clk 0:00:31.8]} 43... Kxc4 {[%clk 0:01:12.7]} 44. Bg4 {[%clk 0:00:32.3]}
44... Ne5 {[%clk 0:01:10.9]} 45. Bf5 {[%clk 0:00:32.6]} 45... b5 {[%clk
0:01:07.6]} 46. g4 {[%clk 0:00:32.9]} 46... Ra7 {[%clk 0:01:02.1]} 47. g5 {[%clk
0:00:31.5]} 47... Nd3+ {[%clk 0:01:00.9]} 48. Ke3 {[%clk 0:00:31.6]} 48... fxg5
{[%clk 0:01:01.8]} 49. Rxg5 {[%clk 0:00:21.8]} 49... Ra3 {[%clk 0:00:48.2]} 50.
Be6+ {[%clk 0:00:20]} 50... Kb4 {[%clk 0:00:45.7]} 51. Bb3 {[%clk 0:00:10.3]}
51... c5 {[%clk 0:00:40.2]} 52. Bg8 {[%clk 0:00:08.5]} 52... h6 {[%clk
0:00:37.7]} 53. Rg7 {[%clk 0:00:08.1]} 53... c4 {[%clk 0:00:35]} 54. Kd4 {[%clk
0:00:09]} 54... Rxa2 {[%clk 0:00:34.5]} 55. e5 {[%clk 0:00:08.2]} 55... Rd2
{[%clk 0:00:16.6]} 56. e6 {[%clk 0:00:08.2]} 56... Nf4+ {[%clk 0:00:16]} 57. Ke3
{[%clk 0:00:08.3]} 57... Nxe6 {[%clk 0:00:16.3]} 58. Bxe6 {[%clk 0:00:08.1]}
58... Rd6 {[%clk 0:00:16.5]} 59. Bf5 {[%clk 0:00:07.8]} 59... c3 {[%clk
0:00:15.9]} 60. Rb7 {[%clk 0:00:07.7]} 60... Kc4 {[%clk 0:00:15.4]} 61. Bb1
{[%clk 0:00:04.5]} 61... Re6+ {[%clk 0:00:12.4]} 62. Kf2 {[%clk 0:00:04.1]}
62... Re5 {[%clk 0:00:11.3]} 63. Ba2+ {[%clk 0:00:02.9]} 63... Kb4 {[%clk
0:00:11.7]} 64. Bb1 {[%clk 0:00:02.8]} 64... Kb3 {[%clk 0:00:11.2]} 65. Bd3
{[%clk 0:00:03.1]} 65... b4 {[%clk 0:00:10.7]} 66. Rc7 {[%clk 0:00:02.7]} 66...
Kb2 {[%clk 0:00:10.5]} 67. Kf3 {[%clk 0:00:02]} 67... b3 {[%clk 0:00:10.8]} 68.
Kf4 {[%clk 0:00:02.9]} 68... Re6 {[%clk 0:00:09.5]} 69. Bf5 {[%clk 0:00:02.9]}
69... Rf6 {[%clk 0:00:09.2]} 70. Ke5 {[%clk 0:00:03.2]} 70... Rxf5+ {[%clk
0:00:09.8]} 71. Kxf5 {[%clk 0:00:04.1]} 71... c2 {[%clk 0:00:10.6]} 72. Kg6
{[%clk 0:00:04.2]} 72... c1=Q {[%clk 0:00:11]} 73. Rxc1 {[%clk 0:00:03.9]} 73...
Kxc1 {[%clk 0:00:11.9]} 0-1

[Event "*** SCC Grand Prix: Titled Tuesday Blitz"]
[Site "Chess.com"]
[Date "2020.06.23"]
[Round "7"]
[White "stanyga"]
[Black "rpragchess"]
[Result "1-0"]
[WhiteElo "2616"]
[BlackElo "2769"]
[TimeControl "180+1"]
[EndTime "11:19:20 PDT"]
[Termination "stanyga won by resignation"]

1. e4 {[%clk 0:03:00.9]} 1... c5 {[%clk 0:02:58]} 2. Nf3 {[%clk 0:03:00.1]} 2...
Nc6 {[%clk 0:02:58.3]} 3. Bb5 {[%clk 0:02:59.1]} 3... g6 {[%clk 0:02:58]} 4.
Bxc6 {[%clk 0:02:58.7]} 4... bxc6 {[%clk 0:02:58.5]} 5. O-O {[%clk 0:02:55.7]}
5... Bg7 {[%clk 0:02:58.5]} 6. Re1 {[%clk 0:02:55.2]} 6... Nh6 {[%clk
0:02:58.6]} 7. c3 {[%clk 0:02:54.4]} 7... O-O {[%clk 0:02:58.2]} 8. d4 {[%clk
0:02:54.8]} 8... cxd4 {[%clk 0:02:58.1]} 9. cxd4 {[%clk 0:02:54.8]} 9... d5
{[%clk 0:02:58.6]} 10. e5 {[%clk 0:02:45.2]} 10... f6 {[%clk 0:02:57.8]} 11.
exf6 {[%clk 0:02:37.3]} 11... exf6 {[%clk 0:02:57.5]} 12. Nc3 {[%clk 0:02:32]}
12... Re8 {[%clk 0:02:49.3]} 13. Rxe8+ {[%clk 0:02:24.6]} 13... Qxe8 {[%clk
0:02:50.2]} 14. h3 {[%clk 0:02:24.8]} 14... g5 {[%clk 0:02:40.1]} 15. Be3 {[%clk
0:02:12.8]} 15... g4 {[%clk 0:02:31.1]} 16. hxg4 {[%clk 0:02:08.2]} 16... Bxg4
{[%clk 0:02:32]} 17. Bxh6 {[%clk 0:02:05.7]} 17... Bxh6 {[%clk 0:02:30.3]} 18.
Qd3 {[%clk 0:02:06.2]} 18... Qh5 {[%clk 0:02:18.5]} 19. Re1 {[%clk 0:01:54.8]}
19... Kh8 {[%clk 0:02:04.1]} 20. Re7 {[%clk 0:01:50]} 20... Bf4 {[%clk
0:02:00.3]} 21. Ne2 {[%clk 0:01:46.5]} 21... Bd6 {[%clk 0:01:53.6]} 22. Ng3
{[%clk 0:01:45.9]} 22... Qh6 {[%clk 0:01:47.8]} 23. Re1 {[%clk 0:01:26]} 23...
Qf4 {[%clk 0:01:01]} 24. Nh4 {[%clk 0:01:05.6]} 24... Rg8 {[%clk 0:00:47.8]} 25.
Kf1 {[%clk 0:00:46]} 25... Be2+ {[%clk 0:00:21.1]} 26. Rxe2 {[%clk 0:00:40.5]}
26... Qxh4 {[%clk 0:00:21.5]} 27. Re3 {[%clk 0:00:26.4]} 27... Bxg3 {[%clk
0:00:15.3]} 28. Rxg3 {[%clk 0:00:23.8]} 28... Rxg3 {[%clk 0:00:15]} 29. fxg3
{[%clk 0:00:20.3]} 29... Qg5 {[%clk 0:00:14]} 30. Kg1 {[%clk 0:00:16.6]} 30...
Qc1+ {[%clk 0:00:12.6]} 31. Qf1 {[%clk 0:00:13.1]} 31... Qxf1+ {[%clk 0:00:04]}
32. Kxf1 {[%clk 0:00:13.2]} 32... Kg7 {[%clk 0:00:04.9]} 33. Kf2 {[%clk
0:00:13.4]} 33... Kg6 {[%clk 0:00:05.3]} 34. Kf3 {[%clk 0:00:13.2]} 34... Kf5
{[%clk 0:00:04.1]} 35. g4+ {[%clk 0:00:13.2]} 35... Kg5 {[%clk 0:00:04.4]} 36.
g3 {[%clk 0:00:13]} 36... f5 {[%clk 0:00:03]} 37. gxf5 {[%clk 0:00:12.9]} 37...
Kxf5 {[%clk 0:00:03.9]} 38. g4+ {[%clk 0:00:13.2]} 38... Kg5 {[%clk 0:00:04.4]}
39. Kg3 {[%clk 0:00:13.3]} 39... h6 {[%clk 0:00:04]} 40. b4 {[%clk 0:00:10.3]}
40... a6 {[%clk 0:00:02.7]} 41. a4 {[%clk 0:00:10.1]} 41... Kg6 {[%clk
0:00:02.9]} 42. Kh4 {[%clk 0:00:09.2]} 42... Kf6 {[%clk 0:00:02.1]} 43. Kh5
{[%clk 0:00:09.6]} 43... Kg7 {[%clk 0:00:02.6]} 44. g5 {[%clk 0:00:09.6]} 44...
hxg5 {[%clk 0:00:02.9]} 45. Kxg5 {[%clk 0:00:10]} 45... Kf7 {[%clk 0:00:03.5]}
46. Kf5 {[%clk 0:00:10.4]} 46... Ke7 {[%clk 0:00:03.6]} 47. Ke5 {[%clk
0:00:10.8]} 47... Kd7 {[%clk 0:00:04.1]} 48. Kf6 {[%clk 0:00:10.3]} 48... Kd6
{[%clk 0:00:04.3]} 49. Kf5 {[%clk 0:00:10.7]} 49... Kd7 {[%clk 0:00:03.2]} 50.
Kf6 {[%clk 0:00:10.1]} 50... Kd6 {[%clk 0:00:03.5]} 51. Kf7 {[%clk 0:00:09.9]}
51... Kd7 {[%clk 0:00:04]} 52. a5 {[%clk 0:00:07.7]} 52... Kd6 {[%clk
0:00:04.2]} 53. Ke8 {[%clk 0:00:07]} 53... Ke6 {[%clk 0:00:02.8]} 54. Kd8 {[%clk
0:00:07.3]} 54... Kf5 {[%clk 0:00:03.2]} 55. Kc7 {[%clk 0:00:07.4]} 55... Ke4
{[%clk 0:00:03.4]} 56. Kxc6 {[%clk 0:00:07.7]} 56... Kxd4 {[%clk 0:00:04.3]} 57.
b5 {[%clk 0:00:07]} 57... axb5 {[%clk 0:00:03.9]} 58. a6 {[%clk 0:00:07.2]}
58... b4 {[%clk 0:00:04.8]} 59. a7 {[%clk 0:00:07.1]} 59... b3 {[%clk
0:00:05.7]} 60. a8=Q {[%clk 0:00:06.3]} 60... b2 {[%clk 0:00:06.6]} 61. Qh8+
{[%clk 0:00:06.3]} 61... Kc4 {[%clk 0:00:06.4]} 62. Qxb2 {[%clk 0:00:06.3]}
62... d4 {[%clk 0:00:07.3]} 63. Qd2 {[%clk 0:00:06.4]} 63... d3 {[%clk
0:00:07.5]} 64. Kd6 {[%clk 0:00:06.9]} 64... Kd4 {[%clk 0:00:08.4]} 65. Ke6
{[%clk 0:00:07.2]} 65... Ke4 {[%clk 0:00:08.6]} 66. Qe1+ {[%clk 0:00:07.4]}
66... Kd4 {[%clk 0:00:08]} 67. Qe5+ {[%clk 0:00:07.5]} 67... Kc4 {[%clk
0:00:08.3]} 68. Qb2 {[%clk 0:00:07.6]} 1-0

[Event "*** SCC Grand Prix: Titled Tuesday Blitz"]
[Site "Chess.com"]
[Date "2020.06.23"]
[Round "7"]
[White "Elegance_Riks"]
[Black "Love_craft"]
[Result "1-0"]
[WhiteElo "2593"]
[BlackElo "2445"]
[TimeControl "180+1"]
[EndTime "11:19:25 PDT"]
[Termination "Elegance_Riks won by resignation"]

1. e4 {[%clk 0:03:00.9]} 1... g6 {[%clk 0:02:59.7]} 2. d4 {[%clk 0:03:00.4]}
2... Bg7 {[%clk 0:03:00]} 3. Nf3 {[%clk 0:03:01]} 3... d6 {[%clk 0:03:00.1]} 4.
c3 {[%clk 0:03:00.4]} 4... Nd7 {[%clk 0:02:59.4]} 5. Bd3 {[%clk 0:03:00.5]} 5...
e5 {[%clk 0:02:59.4]} 6. O-O {[%clk 0:02:58.1]} 6... Ngf6 {[%clk 0:02:57.9]} 7.
Re1 {[%clk 0:02:58.1]} 7... O-O {[%clk 0:02:57.6]} 8. Nbd2 {[%clk 0:02:58.5]}
8... Nh5 {[%clk 0:02:56.6]} 9. Nf1 {[%clk 0:02:58.2]} 9... Kh8 {[%clk
0:02:54.9]} 10. Ng3 {[%clk 0:02:56.1]} 10... Nxg3 {[%clk 0:02:51.8]} 11. hxg3
{[%clk 0:02:55.5]} 11... Qe7 {[%clk 0:02:51.5]} 12. Bg5 {[%clk 0:02:47.1]} 12...
f6 {[%clk 0:02:44.3]} 13. Bd2 {[%clk 0:02:41.7]} 13... Re8 {[%clk 0:02:32.7]}
14. a4 {[%clk 0:02:41.4]} 14... a5 {[%clk 0:02:29.1]} 15. Qb3 {[%clk 0:02:34.9]}
15... Nb6 {[%clk 0:02:24.6]} 16. Bb5 {[%clk 0:02:34.9]} 16... Rf8 {[%clk
0:02:14.8]} 17. Bd3 {[%clk 0:02:22.1]} 17... Be6 {[%clk 0:02:12.5]} 18. Qc2
{[%clk 0:02:22]} 18... Qf7 {[%clk 0:02:09.3]} 19. d5 {[%clk 0:02:19.8]} 19...
Bc8 {[%clk 0:02:08.8]} 20. b4 {[%clk 0:02:20]} 20... Bd7 {[%clk 0:01:50.1]} 21.
c4 {[%clk 0:02:14.5]} 21... Bc8 {[%clk 0:01:15.7]} 22. c5 {[%clk 0:02:12.6]}
22... Nd7 {[%clk 0:01:08.2]} 23. cxd6 {[%clk 0:02:12.6]} 23... cxd6 {[%clk
0:01:07.9]} 24. Qc7 {[%clk 0:02:12]} 24... Qe7 {[%clk 0:00:52.4]} 25. bxa5
{[%clk 0:02:06.9]} 25... Rf7 {[%clk 0:00:47.1]} 26. Bb4 {[%clk 0:02:02.2]} 26...
Bf8 {[%clk 0:00:47.3]} 27. Rec1 {[%clk 0:01:58.8]} 27... Nc5 {[%clk 0:00:43]}
28. Qxe7 {[%clk 0:01:58]} 28... Bxe7 {[%clk 0:00:38.6]} 29. Bxc5 {[%clk
0:01:58.3]} 29... dxc5 {[%clk 0:00:39.5]} 30. Nd2 {[%clk 0:01:57.9]} 30... Rxa5
{[%clk 0:00:29.9]} 31. Nc4 {[%clk 0:01:58.1]} 31... Ra6 {[%clk 0:00:20.5]} 32.
a5 {[%clk 0:01:58.4]} 32... Rf8 {[%clk 0:00:11.9]} 33. Nb6 {[%clk 0:01:51.7]}
33... Ra7 {[%clk 0:00:09]} 34. Bb5 {[%clk 0:01:50.3]} 34... Rd8 {[%clk
0:00:08.2]} 35. Rd1 {[%clk 0:01:49.2]} 35... Bd6 {[%clk 0:00:08]} 36. Rdc1
{[%clk 0:01:39.9]} 36... f5 {[%clk 0:00:07.4]} 37. Nc4 {[%clk 0:01:40.2]} 37...
fxe4 {[%clk 0:00:06.5]} 38. Nxd6 {[%clk 0:01:40.5]} 38... Rxd6 {[%clk
0:00:07.1]} 39. Rxc5 {[%clk 0:01:40.9]} 39... Bf5 {[%clk 0:00:06.1]} 40. Bc4
{[%clk 0:01:35.3]} 40... b6 {[%clk 0:00:05.1]} 41. Rb5 {[%clk 0:01:24.9]} 41...
Rxa5 {[%clk 0:00:05.2]} 42. Raxa5 {[%clk 0:01:24.3]} 42... bxa5 {[%clk
0:00:06.1]} 43. Rxa5 {[%clk 0:01:24.7]} 43... h5 {[%clk 0:00:05.5]} 44. Ra7
{[%clk 0:01:15.1]} 44... e3 {[%clk 0:00:05.8]} 45. fxe3 {[%clk 0:01:13.2]} 45...
Be4 {[%clk 0:00:06.2]} 46. Ra5 {[%clk 0:01:10.9]} 46... Kg7 {[%clk 0:00:06.1]}
47. Rc5 {[%clk 0:01:05]} 47... Kf6 {[%clk 0:00:06]} 48. Kf2 {[%clk 0:01:04.4]}
48... Kg5 {[%clk 0:00:05.6]} 49. Kg1 {[%clk 0:00:59.6]} 49... Kf5 {[%clk
0:00:05.6]} 50. Kf2 {[%clk 0:00:59.5]} 50... Kg5 {[%clk 0:00:05.8]} 51. Rb5
{[%clk 0:00:57.9]} 51... Kf5 {[%clk 0:00:05.5]} 52. Bb3 {[%clk 0:00:58]} 52...
Kg5 {[%clk 0:00:03]} 53. Rc5 {[%clk 0:00:57.7]} 53... Kf5 {[%clk 0:00:02.7]} 54.
Rb5 {[%clk 0:00:53.9]} 54... Kg5 {[%clk 0:00:01.9]} 55. Ba2 {[%clk 0:00:53.6]}
55... Kf5 {[%clk 0:00:02.3]} 56. Bc4 {[%clk 0:00:52]} 56... Rd7 {[%clk
0:00:01.4]} 57. Rb2 {[%clk 0:00:39.2]} 57... Rd6 {[%clk 0:00:01.7]} 58. Rd2
{[%clk 0:00:39.2]} 58... Kg5 {[%clk 0:00:02]} 59. Bb3 {[%clk 0:00:36.1]} 59...
Kf5 {[%clk 0:00:02.4]} 60. Kg1 {[%clk 0:00:33.3]} 60... Kg4 {[%clk 0:00:02.2]}
61. Kh2 {[%clk 0:00:31]} 61... Kg5 {[%clk 0:00:02.2]} 62. Kg1 {[%clk 0:00:30.1]}
62... Kg4 {[%clk 0:00:02.4]} 63. Kf2 {[%clk 0:00:28.8]} 63... Kg5 {[%clk
0:00:02.9]} 64. Kg1 {[%clk 0:00:28.1]} 64... Kf5 {[%clk 0:00:03.3]} 65. Kf2
{[%clk 0:00:28.3]} 65... Kg4 {[%clk 0:00:03.8]} 66. Bd1+ {[%clk 0:00:27.4]}
66... Kf5 {[%clk 0:00:04]} 67. Bf3 {[%clk 0:00:28]} 67... Rd7 {[%clk 0:00:02.9]}
68. Rd1 {[%clk 0:00:24.4]} 68... Bxf3 {[%clk 0:00:03]} 69. gxf3 {[%clk
0:00:23.7]} 69... e4 {[%clk 0:00:03.5]} 70. Rd4 {[%clk 0:00:22.2]} 70... exf3
{[%clk 0:00:03.4]} 71. Kxf3 {[%clk 0:00:22.7]} 71... Ke5 {[%clk 0:00:03.9]} 72.
Re4+ {[%clk 0:00:21]} 72... Kxd5 {[%clk 0:00:03.3]} 73. Rd4+ {[%clk 0:00:21.2]}
73... Ke6 {[%clk 0:00:03.8]} 74. Rxd7 {[%clk 0:00:21.8]} 74... Kxd7 {[%clk
0:00:04.7]} 75. Kf4 {[%clk 0:00:22.7]} 75... Ke6 {[%clk 0:00:04.9]} 76. Kg5
{[%clk 0:00:23.3]} 76... Kf7 {[%clk 0:00:05.3]} 77. e4 {[%clk 0:00:23.8]} 77...
Kg7 {[%clk 0:00:05.2]} 78. e5 {[%clk 0:00:23.9]} 78... Kf7 {[%clk 0:00:05.7]}
79. Kh6 {[%clk 0:00:24.3]} 79... h4 {[%clk 0:00:03.6]} 80. gxh4 {[%clk
0:00:23.4]} 80... Ke6 {[%clk 0:00:04.3]} 81. Kxg6 {[%clk 0:00:23.7]} 81... Kxe5
{[%clk 0:00:04.8]} 82. h5 {[%clk 0:00:24.2]} 1-0

[Event "*** SCC Grand Prix: Titled Tuesday Blitz"]
[Site "Chess.com"]
[Date "2020.06.23"]
[Round "7"]
[White "MarcoRiehle"]
[Black "VincentKeymer"]
[Result "1-0"]
[WhiteElo "2723"]
[BlackElo "2829"]
[TimeControl "180+1"]
[EndTime "11:19:47 PDT"]
[Termination "MarcoRiehle won on time"]

1. e4 {[%clk 0:03:00.9]} 1... c6 {[%clk 0:02:57.7]} 2. c4 {[%clk 0:03:00.5]}
2... d5 {[%clk 0:02:57.3]} 3. exd5 {[%clk 0:03:01.4]} 3... cxd5 {[%clk
0:02:57.9]} 4. cxd5 {[%clk 0:03:01.4]} 4... Nf6 {[%clk 0:02:57.8]} 5. Nc3 {[%clk
0:03:00.7]} 5... g6 {[%clk 0:02:56.4]} 6. Bc4 {[%clk 0:03:00.1]} 6... Bg7 {[%clk
0:02:54.3]} 7. Nf3 {[%clk 0:03:00.5]} 7... O-O {[%clk 0:02:54.3]} 8. O-O {[%clk
0:03:00.2]} 8... Nbd7 {[%clk 0:02:54.9]} 9. d3 {[%clk 0:02:59.9]} 9... Nb6
{[%clk 0:02:45.1]} 10. Qb3 {[%clk 0:02:59.4]} 10... Bg4 {[%clk 0:02:43.4]} 11.
Ne5 {[%clk 0:02:59.1]} 11... Bf5 {[%clk 0:02:40.9]} 12. Re1 {[%clk 0:02:58.5]}
12... Rc8 {[%clk 0:02:22.7]} 13. Bg5 {[%clk 0:02:44.2]} 13... h6 {[%clk
0:02:19.5]} 14. Bh4 {[%clk 0:02:43.7]} 14... g5 {[%clk 0:02:02.2]} 15. Bg3
{[%clk 0:02:42.6]} 15... Nfd7 {[%clk 0:02:00.9]} 16. a4 {[%clk 0:02:35]} 16...
Nc5 {[%clk 0:01:53.3]} 17. Qd1 {[%clk 0:02:30.7]} 17... Nbd7 {[%clk 0:01:42.1]}
18. b4 {[%clk 0:02:19.5]} 18... Na6 {[%clk 0:01:35.3]} 19. Qb3 {[%clk
0:02:10.2]} 19... Nab8 {[%clk 0:01:24.1]} 20. Rac1 {[%clk 0:02:04.5]} 20... a6
{[%clk 0:01:19.4]} 21. a5 {[%clk 0:01:53.8]} 21... h5 {[%clk 0:01:18.1]} 22. h3
{[%clk 0:01:42.8]} 22... h4 {[%clk 0:01:09.9]} 23. Bh2 {[%clk 0:01:42]} 23...
Nxe5 {[%clk 0:01:07]} 24. Bxe5 {[%clk 0:01:40.6]} 24... Nd7 {[%clk 0:01:07.6]}
25. Bxg7 {[%clk 0:01:37.8]} 25... Kxg7 {[%clk 0:01:08.5]} 26. Ne4 {[%clk
0:01:38.2]} 26... Bxe4 {[%clk 0:01:05.5]} 27. dxe4 {[%clk 0:01:39.1]} 27... Ne5
{[%clk 0:01:05.3]} 28. Be2 {[%clk 0:01:35.5]} 28... Qd6 {[%clk 0:01:04.9]} 29.
Bg4 {[%clk 0:01:31.8]} 29... Rc7 {[%clk 0:01:03]} 30. Qe3 {[%clk 0:01:26.2]}
30... f6 {[%clk 0:00:56.2]} 31. Be6 {[%clk 0:01:23]} 31... Ng6 {[%clk
0:00:53.4]} 32. Qb6 {[%clk 0:01:16.3]} 32... Rxc1 {[%clk 0:00:43.1]} 33. Rxc1
{[%clk 0:01:14.9]} 33... Qf4 {[%clk 0:00:43.4]} 34. Qe3 {[%clk 0:01:15.4]} 34...
Qe5 {[%clk 0:00:39.9]} 35. Bf5 {[%clk 0:00:56.7]} 35... Nf4 {[%clk 0:00:38]} 36.
Kh1 {[%clk 0:00:52.1]} 36... Rf7 {[%clk 0:00:26.3]} 37. Qc3 {[%clk 0:00:48]}
37... Qd6 {[%clk 0:00:26]} 38. Qc5 {[%clk 0:00:46.7]} 38... Qe5 {[%clk
0:00:26.1]} 39. Qc3 {[%clk 0:00:46.8]} 39... Qd6 {[%clk 0:00:21.3]} 40. Qc5
{[%clk 0:00:19.5]} 40... Nd3 {[%clk 0:00:21.2]} 41. Qxd6 {[%clk 0:00:19.3]}
41... exd6 {[%clk 0:00:22.1]} 42. Rc4 {[%clk 0:00:15.7]} 42... Nxf2+ {[%clk
0:00:21.4]} 43. Kg1 {[%clk 0:00:16.3]} 43... Nd3 {[%clk 0:00:21.9]} 44. Kf1
{[%clk 0:00:14.3]} 44... Re7 {[%clk 0:00:20.5]} 45. Ke2 {[%clk 0:00:13.3]} 45...
Nf4+ {[%clk 0:00:20.6]} 46. Kf3 {[%clk 0:00:12.9]} 46... Nd3 {[%clk 0:00:20.9]}
47. Rc8 {[%clk 0:00:12.5]} 47... Nxb4 {[%clk 0:00:19.9]} 48. Rd8 {[%clk
0:00:12.9]} 48... Nd3 {[%clk 0:00:16.8]} 49. Rxd6 {[%clk 0:00:12.9]} 49... Ne5+
{[%clk 0:00:17.4]} 50. Kf2 {[%clk 0:00:12.8]} 50... Nc4 {[%clk 0:00:17.7]} 51.
Rd8 {[%clk 0:00:12.1]} 51... Kf7 {[%clk 0:00:11.8]} 52. d6 {[%clk 0:00:11.7]}
52... Re8 {[%clk 0:00:11]} 53. Bg6+ {[%clk 0:00:11.1]} 53... Kxg6 {[%clk
0:00:11.4]} 54. Rxe8 {[%clk 0:00:11.7]} 54... Nxd6 {[%clk 0:00:12.3]} 55. Re6
{[%clk 0:00:10.1]} 55... Nc4 {[%clk 0:00:12.7]} 56. Kf3 {[%clk 0:00:07.7]} 56...
Nxa5 {[%clk 0:00:10.2]} 57. e5 {[%clk 0:00:06.4]} 57... Kf5 {[%clk 0:00:10.7]}
58. Rxf6+ {[%clk 0:00:04.9]} 58... Kxe5 {[%clk 0:00:11.2]} 59. Rb6 {[%clk
0:00:03.8]} 59... Kf5 {[%clk 0:00:10.2]} 60. Kf2 {[%clk 0:00:03.8]} 60... Nc4
{[%clk 0:00:09.2]} 61. Rxb7 {[%clk 0:00:03.7]} 61... Ne5 {[%clk 0:00:08.5]} 62.
Ra7 {[%clk 0:00:04.6]} 62... Nd3+ {[%clk 0:00:07.8]} 63. Ke3 {[%clk 0:00:05]}
63... Ne1 {[%clk 0:00:07.4]} 64. Kf2 {[%clk 0:00:04.4]} 64... Nd3+ {[%clk
0:00:07.7]} 65. Kg1 {[%clk 0:00:05.3]} 65... Nc5 {[%clk 0:00:05.3]} 66. Rc7
{[%clk 0:00:04.7]} 66... Ne4 {[%clk 0:00:05]} 67. Ra7 {[%clk 0:00:05.6]} 67...
Nc5 {[%clk 0:00:04.9]} 68. Kh2 {[%clk 0:00:06]} 68... Ke5 {[%clk 0:00:04.6]} 69.
g3 {[%clk 0:00:06.2]} 69... hxg3+ {[%clk 0:00:04.4]} 70. Kxg3 {[%clk 0:00:07.1]}
70... Ne4+ {[%clk 0:00:04.8]} 71. Kg4 {[%clk 0:00:07]} 71... Kf6 {[%clk
0:00:04.2]} 72. Rxa6+ {[%clk 0:00:06.6]} 72... Kg7 {[%clk 0:00:04.7]} 73. Ra5
{[%clk 0:00:06.8]} 73... Nf2+ {[%clk 0:00:04]} 74. Kg3 {[%clk 0:00:07.2]} 74...
Ne4+ {[%clk 0:00:04.4]} 75. Kf3 {[%clk 0:00:07.7]} 75... Nf6 {[%clk 0:00:04.4]}
76. Rxg5+ {[%clk 0:00:07.4]} 76... Kh6 {[%clk 0:00:05]} 77. Ra5 {[%clk
0:00:08.3]} 77... Kg6 {[%clk 0:00:04.1]} 78. h4 {[%clk 0:00:07.8]} 78... Kh6
{[%clk 0:00:03.9]} 79. Rg5 {[%clk 0:00:07.4]} 79... Nh5 {[%clk 0:00:03.7]} 80.
Kg4 {[%clk 0:00:07.4]} 80... Nf6+ {[%clk 0:00:04]} 81. Kf5 {[%clk 0:00:07.8]}
81... Nh5 {[%clk 0:00:04.2]} 82. Rg6+ {[%clk 0:00:08.3]} 82... Kh7 {[%clk
0:00:04.2]} 83. Kg5 {[%clk 0:00:08.8]} 83... Ng3 {[%clk 0:00:04.5]} 84. Re6
{[%clk 0:00:08.2]} 84... Nf1 {[%clk 0:00:03.8]} 85. Re7+ {[%clk 0:00:07.8]}
85... Kg8 {[%clk 0:00:03.2]} 86. Kg6 {[%clk 0:00:08.4]} 86... Kf8 {[%clk
0:00:03.6]} 87. Rf7+ {[%clk 0:00:08.9]} 1-0